fUST/lending_fUST_20250529
["ID","MTS","AMOUNT","RATE_DAILY","PERIOD"]
[362844810,1748487046398,-1000.0,0.00022273,2]
[362844811,1748487046408,-624.96597753,0.00022314,7]
[362844812,1748487046418,-1069.42552681,0.00022336,2]
[362844813,1748487046428,-215.0738,0.00022399,2]
[362844814,1748487046438,-1500.0,0.00022407,2]
[362844815,1748487046447,-500.0,0.00022465,2]
[362844816,1748487046457,-430.0,0.00022465,2]
[362844817,1748487046467,-430.0,0.00022465,2]
[362844818,1748487046477,-986.87,0.00022465,2]
[362844819,1748487046487,-913.89,0.00022465,2]
[362844820,1748487046496,-490.51,0.00022465,2]
[362844821,1748487046506,-448.07,0.00022465,2]
[362844822,1748487046516,-430.0,0.00022465,2]
[362844823,1748487046529,-430.0,0.00022465,2]
[362844824,1748487046539,-800.41,0.00022465,2]
[362844825,1748487046550,-430.0,0.00022465,2]
[362844826,1748487046561,-430.0,0.00022465,2]
[362844827,1748487046571,-430.0,0.00022465,2]
[362844828,1748487046581,-962.56,0.00022465,2]
[362844829,1748487046591,-430.0,0.00022465,2]
[362844830,1748487046601,-430.0,0.00022465,2]
[362844831,1748487046610,-1264.39,0.00022465,2]
[362844832,1748487046620,-1000.0,0.00022478,2]
[362844833,1748487046629,-1001.90010246,0.00022478,2]
[362844834,1748487046639,-501.64564373,0.00022478,2]
[362844835,1748487046649,-503.15297277,0.00022478,2]
[362844836,1748487046659,-502.32818901,0.00022478,2]
[362844837,1748487046669,-1000.0,0.00022478,2]
[362844838,1748487046679,-624.96597753,0.00022486,7]
[362844839,1748487046689,-500.47193221,0.00022544,2]
[362844840,1748487046699,-637.0,0.000226,2]
[362844841,1748487046709,-293.025388,0.00022603,2]
[362844842,1748487046719,-624.96597753,0.00022659,7]
[362844843,1748487046729,-587.0,0.00022662,2]
[362844844,1748487046739,-500.0,0.00022664,2]
[362844845,1748487046749,-500.0,0.00022685,2]
[362844846,1748487046759,-500.951296,0.00022692,2]
[362844847,1748487046769,-500.0,0.00022693,2]
[362844849,1748487046779,-500.0,0.000227,2]
[362844850,1748487046789,-500.0,0.000227,2]
[362844851,1748487046800,-500.0,0.000227,2]
[362844852,1748487046810,-166.76678,0.0002272,3]
[362844854,1748487046820,-430.0,0.00022739,2]
[362844855,1748487046830,-195.33457164,0.00022739,2]
[362844856,1748487046841,-986.87,0.00022739,2]
[362844857,1748487046851,-913.89,0.00022739,2]
[362844858,1748487046860,-490.51,0.00022739,2]
[362844859,1748487046870,-448.07,0.00022739,2]
[362844860,1748487046880,-395.24,0.00022739,2]
[362844862,1748487046890,-430.0,0.00022739,2]
[362844863,1748487046900,-800.41,0.00022739,2]
[362844865,1748487046910,-192.16813463,0.00022739,2]
[362844866,1748487047007,-430.0,0.00022739,2]
[362844867,1748487047017,-430.0,0.00022739,2]
[362844868,1748487047027,-962.56,0.00022739,2]
[362844869,1748487047037,-430.0,0.00022739,2]
[362844870,1748487047049,-430.0,0.00022739,2]
[362844871,1748487047059,-1264.39,0.00022739,2]
[362844872,1748487047069,-153.0,0.00022767,2]
[362844873,1748487047078,-572.078714,0.00022767,2]
[362844874,1748487047089,-153.0,0.00022795,2]
[362844875,1748487047098,-176.3696131,0.00022795,2]
[362844876,1748487047108,-176.3696131,0.00022795,2]
[362844877,1748487047117,-306.0,0.00022795,2]
[362844878,1748487047127,-180.0699531,0.00022795,2]
[362844879,1748487047136,-153.0,0.00022795,2]
[362844880,1748487047146,-153.0,0.00022795,2]
[362844881,1748487047156,-153.0,0.00022795,2]
[362844882,1748487047165,-151.0,0.00022795,7]
[362844883,1748487047175,-271.360748,0.00022795,7]
[362844884,1748487047184,-151.0,0.00022795,7]
[362844885,1748487047193,-151.0,0.00022795,7]
[362844886,1748487047203,-1865.221436,0.00022795,2]
[362844887,1748487047212,-1865.221436,0.00022795,2]
[362844888,1748487047221,-151.0,0.00022795,7]
[362844889,1748487047231,-151.0,0.00022795,7]
[362844890,1748487047243,-251.911588,0.00022795,7]
[362844891,1748487047253,-961.0,0.00022805,2]
[362844892,1748487047262,-2237.375,0.00022805,2]
[362844893,1748487047271,-711.108,0.00022805,2]
[362844894,1748487047282,-405.0,0.00022805,2]
[362844895,1748487047291,-1800.0,0.00022821,2]
[362844896,1748487047302,-1002.95117659,0.00022821,2]
[362844897,1748487047311,-624.96597753,0.00022831,8]
[362844898,1748487047322,-8813.0,0.00022889,2]
[362844899,1748487047332,-2545.96,0.000229,7]
[362844900,1748487047342,-501.01063419,0.00022955,2]
[362844901,1748487047352,-500.0,0.00023,2]
[362844902,1748487047362,-500.0,0.00023,120]
[362844903,1748487047371,-500.0,0.00023,2]
[362844904,1748487047381,-160.0,0.00023,3]
[362844905,1748487047391,-160.0,0.00023,3]
[362844906,1748487047401,-200.42875729,0.00023,5]
[362844907,1748487047410,-624.96597753,0.00023003,8]
[362844908,1748487047420,-500.0,0.00023013,2]
[362844909,1748487047429,-570.6,0.00023013,2]
[362844910,1748487047439,-986.87,0.00023013,2]
[362844911,1748487047448,-913.89,0.00023013,2]
[362844912,1748487047457,-490.51,0.00023013,2]
[362844913,1748487047467,-448.07,0.00023013,2]
[362844914,1748487047476,-152.089154,0.00023013,7]
[362844915,1748487047486,-430.0,0.00023013,2]
[362844916,1748487047495,-800.41,0.00023013,2]
[362844917,1748487047505,-151.0,0.00023013,7]
[362844918,1748487047515,-430.0,0.00023013,2]
[362844919,1748487047524,-430.0,0.00023013,2]
[362844920,1748487047534,-962.56,0.00023013,2]
[362844921,1748487047543,-430.0,0.00023013,2]
[362844922,1748487047554,-289.46525415,0.00023013,2]
[362844923,1748487047563,-1264.39,0.00023013,2]
[362844924,1748487047572,-152.0,0.00023014,7]
[362844925,1748487047582,-1500.0,0.00023026,2]
[362844926,1748487047591,-511.97587533,0.00023026,2]
[362844927,1748487047600,-2000.0,0.000231,2]
[362844928,1748487047611,-2000.0,0.000231,2]
[362844929,1748487047621,-624.96597753,0.00023176,8]
[362844930,1748487047630,-302.64711434,0.00023184,2]
[362844931,1748487047639,-500.9701232,0.000232,8]
[362844932,1748487047649,-501.60915759,0.000232,8]
[362844933,1748487047658,-493.7721,0.000232,2]
[362844934,1748487047668,-727.28,0.00023207,2]
[362844935,1748487047677,-1000.92158318,0.00023233,2]
[362844936,1748487047687,-1000.0,0.00023241,2]
[362844937,1748487047696,-500.0,0.00023273,2]
[362844938,1748487047706,-500.0,0.00023273,2]
[362844939,1748487047715,-500.0,0.00023273,2]
[362844940,1748487047725,-500.0,0.00023273,2]
[362844941,1748487047734,-501.80213921,0.00023273,2]
[362844942,1748487047744,-151.0,0.00023273,7]
[362844943,1748487047753,-151.0,0.00023273,7]
[362844944,1748487047763,-151.0,0.00023273,7]
[362844945,1748487047772,-986.87,0.00023287,2]
[362844946,1748487047781,-913.89,0.00023287,2]
[362844947,1748487047791,-490.51,0.00023287,2]
[362844948,1748487047803,-448.07,0.00023287,2]
[362844949,1748487047813,-430.0,0.00023287,2]
[362844950,1748487047822,-800.41,0.00023287,2]
[362844951,1748487047832,-430.0,0.00023287,2]
[362844952,1748487047841,-430.0,0.00023287,2]
[362844953,1748487047851,-962.56,0.00023287,2]
[362844954,1748487047860,-446.43,0.00023287,2]
[362844955,1748487047870,-1264.39,0.00023287,2]
[362844956,1748487047879,-65424.05890381,0.00023293,7]
[362844957,1748487047888,-65424.05890381,0.00023293,7]
[362844958,1748487047898,-151.0,0.00023293,7]
[362844959,1748487047907,-151.0,0.00023293,7]
[362844960,1748487047916,-151.0,0.00023293,7]
[362844961,1748487047925,-151.0,0.00023293,7]
[362844962,1748487047935,-151.0,0.00023293,7]
[362844963,1748487047944,-151.0,0.00023293,7]
[362844964,1748487047954,-151.0,0.00023293,7]
[362844965,1748487047963,-151.0,0.00023293,7]
[362844966,1748487047972,-330.454584,0.00023293,7]
[362844967,1748487047982,-330.454584,0.00023293,7]
[362844968,1748487047991,-151.0,0.00023293,7]
[362844969,1748487048000,-151.0,0.00023293,7]
[362844970,1748487048010,-151.0,0.00023293,7]
[362844971,1748487048019,-151.0,0.00023293,7]
[362844972,1748487048028,-183.158535,0.00023293,7]
[362844973,1748487048037,-183.158535,0.00023293,7]
[362844974,1748487048047,-151.0,0.00023293,7]
[362844975,1748487048057,-151.0,0.00023293,7]
[362844976,1748487048067,-152.648992,0.00023293,7]
[362844977,1748487048077,-151.0,0.00023293,7]
[362844978,1748487048086,-151.0,0.00023293,7]
[362844979,1748487048096,-234.712489,0.00023293,7]
[362844980,1748487048107,-151.0,0.00023293,7]
[362844981,1748487048116,-580.623305,0.00023293,7]
[362844982,1748487048125,-580.623305,0.00023293,7]
[362844983,1748487048135,-151.0,0.00023293,7]
[362844984,1748487048144,-151.0,0.00023293,7]
[362844985,1748487048154,-151.0,0.00023293,7]
[362844986,1748487048164,-154.983565,0.00023293,7]
[362844987,1748487048173,-159.891252,0.00023293,7]
[362844988,1748487048182,-1865.221436,0.00023293,2]
[362844989,1748487048191,-1865.221436,0.00023293,2]
[362844990,1748487048201,-151.0,0.00023293,7]
[362844991,1748487048210,-264.328248,0.00023293,7]
[362844992,1748487048220,-151.0,0.00023293,7]
[362844993,1748487048229,-124332.87,0.000233,7]
[362844994,1748487048243,-7619.55,0.000233,2]
[362844995,1748487048254,-151.0,0.000233,7]
[362844996,1748487048264,-151.0,0.000233,7]
[362844997,1748487048273,-151.0,0.000233,7]
[362844998,1748487048283,-151.0,0.000233,7]
[362844999,1748487048292,-151.0,0.000233,7]
[362845000,1748487048303,-4989.57,0.000233,7]
[362845001,1748487048313,-190.982317,0.000233,7]
[362845002,1748487048323,-299.973553,0.000233,7]
[362845003,1748487048333,-299.973553,0.000233,7]
[362845004,1748487048342,-175.290016,0.000233,7]
[362845005,1748487048351,-156.294207,0.000233,7]
[362845006,1748487048361,-151.0,0.000233,7]
[362845007,1748487048371,-153.949415,0.000233,7]
[362845008,1748487048381,-151.0,0.000233,7]
[362845009,1748487048390,-151.0,0.000233,7]
[362845010,1748487048400,-1081.445702,0.000233,7]
[362845011,1748487048410,-1081.445702,0.000233,7]
[362845012,1748487048420,-151.0,0.000233,7]
[362845013,1748487048430,-151.0,0.000233,7]
[362845014,1748487048440,-330.454584,0.000233,7]
[362845015,1748487048450,-330.454584,0.000233,7]
[362845016,1748487048460,-151.0,0.000233,7]
[362845017,1748487048470,-151.0,0.000233,7]
[362845018,1748487048479,-151.0,0.000233,7]
[362845019,1748487048489,-151.0,0.000233,7]
[362845020,1748487048499,-183.158535,0.000233,7]
[362845021,1748487048509,-183.158535,0.000233,7]
[362845022,1748487048518,-151.0,0.000233,7]
[362845023,1748487048527,-151.0,0.000233,7]
[362845024,1748487048536,-151.0,0.000233,7]
[362845025,1748487048545,-580.623305,0.000233,7]
[362845026,1748487048556,-580.623305,0.000233,7]
[362845027,1748487048566,-151.0,0.000233,7]
[362845028,1748487048576,-151.0,0.000233,7]
[362845029,1748487048586,-842.5625,0.000233,7]
[362845030,1748487048595,-154.837683,0.000233,7]
[362845031,1748487048604,-160.0,0.000233,7]
[362845032,1748487048614,-1865.221436,0.000233,2]
[362845033,1748487048623,-1865.221436,0.000233,2]
[362845034,1748487048631,-151.0,0.000233,7]
[362845035,1748487048640,-212.70147903,0.000233,7]
[362845036,1748487048649,-12660.97845086,0.000233,7]
[362845037,1748487048659,-727.28,0.00023307,6]
[362845038,1748487048668,-624.96597753,0.00023348,9]
[362845039,1748487048677,-900.0,0.00023356,2]
[362845040,1748487048687,-1954.79117591,0.00023369,2]
[362845041,1748487048696,-727.28,0.00023407,7]
[362845042,1748487048706,-727.28,0.00023507,6]
[362845043,1748487048715,-624.96597753,0.00023521,9]
[362845044,1748487048725,-500.0,0.00023561,2]
[362845045,1748487048735,-986.87,0.00023561,2]
[362845046,1748487048745,-913.89,0.00023561,2]
[362845047,1748487048754,-490.51,0.00023561,2]
[362845048,1748487048764,-448.07,0.00023561,2]
[362845049,1748487048773,-430.0,0.00023561,2]
[362845050,1748487048781,-800.41,0.00023561,2]
[362845051,1748487048788,-430.0,0.00023561,2]
[362845052,1748487048795,-430.0,0.00023561,2]
[362845053,1748487048805,-962.56,0.00023561,2]
[362845054,1748487048815,-1264.39,0.00023561,2]
[362845055,1748487048826,-2000.0,0.00023574,2]
[362845056,1748487048837,-151.0,0.000236,5]
[362845057,1748487048847,-151.0,0.000236,7]
[362845058,1748487048857,-727.28,0.00023607,2]
[362845059,1748487048868,-273.917337,0.0002362,7]
[362845060,1748487048878,-151.0,0.0002362,7]
[362845061,1748487048888,-288.151194,0.0002362,7]
[362845062,1748487048898,-151.0,0.0002362,7]
[362845063,1748487048908,-151.0,0.0002362,7]
[362845064,1748487048918,-151.290635,0.0002362,7]
[362845065,1748487048927,-151.0,0.0002362,7]
[362845066,1748487048937,-151.0,0.0002362,7]
[362845067,1748487048947,-151.0,0.0002362,7]
[362845068,1748487048956,-151.0,0.0002362,7]
[362845069,1748487048967,-151.0,0.0002362,7]
[362845070,1748487048976,-151.632448,0.0002362,7]
[362845071,1748487048986,-151.0,0.0002362,7]
[362845072,1748487048997,-299.973553,0.0002362,7]
[362845073,1748487049007,-299.973553,0.0002362,7]
[362845074,1748487049017,-151.0,0.0002362,7]
[362845075,1748487049028,-151.0,0.0002362,7]
[362845076,1748487049038,-175.290016,0.0002362,7]
[362845077,1748487049048,-151.0,0.0002362,7]
[362845078,1748487049058,-151.0,0.0002362,7]
[362845079,1748487049068,-151.0,0.0002362,7]
[362845080,1748487049078,-4000.0,0.0002362,4]
[362845081,1748487049087,-1471.0,0.00023649,15]
[362845082,1748487049097,-624.96597753,0.00023693,9]
[362845083,1748487049108,-727.28,0.00023707,4]
[362845084,1748487049117,-160.125866,0.00023747,5]
[362845085,1748487049127,-223.0315306,0.00023768,2]
[362845086,1748487049138,-1500.0,0.00023789,2]
[362845087,1748487049147,-2545.96,0.000238,7]
[362845088,1748487049158,-727.28,0.00023807,7]
[362845089,1748487049168,-508.5115965,0.00023821,2]
[362845090,1748487049178,-544.94703601,0.00023821,2]
[362845091,1748487049188,-501.11265055,0.00023821,2]
[362845092,1748487049199,-986.87,0.00023835,2]
[362845093,1748487049208,-913.89,0.00023835,2]
[362845094,1748487049218,-490.51,0.00023835,2]
[362845095,1748487049228,-448.07,0.00023835,2]
[362845096,1748487049243,-430.0,0.00023835,2]
[362845097,1748487049252,-800.41,0.00023835,2]
[362845098,1748487049359,-430.0,0.00023835,2]
[362845099,1748487049371,-256.20495864,0.00023835,2]
[362845100,1748487049381,-962.56,0.00023835,2]
[362845101,1748487049392,-1264.39,0.00023835,2]
[362845102,1748487049402,-26826.28472711,0.00023843,3]
[362845103,1748487049412,-11016.25,0.00023843,2]
[362845104,1748487049423,-624.96597753,0.00023866,10]
[362845105,1748487049433,-1299.82818232,0.000239,2]
[362845106,1748487049442,-727.28,0.00023907,3]
[362845107,1748487049452,-500.0,0.00024,2]
[362845108,1748487049462,-21750.86021649,0.00024,2]
[362845109,1748487049471,-229.26895353,0.00024,7]
[362845110,1748487049481,-800.0,0.00024,120]
[362845111,1748487049491,-151.0,0.00024,7]
[362845112,1748487049501,-160.0,0.00024,7]
[362845113,1748487049510,-1865.221436,0.00024,2]
[362845114,1748487049520,-1865.221436,0.00024,2]
[362845115,1748487049529,-151.0,0.00024,7]
[362845116,1748487049539,-727.28,0.00024007,2]
[362845117,1748487049549,-177.858976,0.0002401,14]
[362845118,1748487049558,-160.125866,0.0002401,14]
[362845119,1748487049567,-624.96597753,0.00024038,10]
[362845120,1748487049577,-7382.0251575,0.00024057,2]
[362845121,1748487049587,-162260.28571146,0.00024057,2]
[362845122,1748487049597,-151.0,0.00024057,7]
[362845123,1748487049607,-151.0,0.00024057,7]
[362845124,1748487049616,-1081.445702,0.00024057,7]
[362845125,1748487049626,-1081.445702,0.00024057,7]
[362845126,1748487049635,-151.0,0.00024057,7]
[362845127,1748487049645,-151.0,0.00024057,7]
[362845128,1748487049654,-330.454584,0.00024057,7]
[362845129,1748487049663,-330.454584,0.00024057,7]
[362845130,1748487049673,-151.0,0.00024057,7]
[362845131,1748487049683,-151.0,0.00024057,7]
[362845132,1748487049692,-151.0,0.00024057,7]
[362845133,1748487049702,-183.158535,0.00024057,7]
[362845134,1748487049711,-183.158535,0.00024057,7]
[362845135,1748487049720,-151.0,0.00024057,7]
[362845136,1748487049730,-151.0,0.00024057,7]
[362845137,1748487049739,-151.0,0.00024057,7]
[362845138,1748487049748,-580.623305,0.00024057,7]
[362845139,1748487049758,-580.623305,0.00024057,7]
[362845140,1748487049767,-153.046848,0.00024057,7]
[362845141,1748487049776,-1865.221436,0.00024057,2]
[362845142,1748487049786,-1865.221436,0.00024057,2]
[362845143,1748487049796,-151.0,0.00024057,7]
[362845144,1748487049807,-124332.87,0.000241,7]
[362845145,1748487049816,-7619.55,0.000241,2]
[362845146,1748487049826,-151.0,0.000241,7]
[362845147,1748487049836,-151.0,0.000241,7]
[362845148,1748487049845,-2000.0,0.000241,2]
[362845149,1748487049855,-2000.0,0.000241,2]
[362845150,1748487049865,-151.0,0.000241,7]
[362845151,1748487049874,-151.0,0.000241,7]
[362845152,1748487049884,-151.0,0.000241,7]
[362845153,1748487049893,-151.0,0.000241,7]
[362845154,1748487049903,-151.0,0.000241,7]
[362845155,1748487049913,-151.0,0.000241,7]
[362845156,1748487049923,-299.973553,0.000241,7]
[362845157,1748487049932,-299.973553,0.000241,7]
[362845158,1748487049942,-151.0,0.000241,7]
[362845159,1748487049951,-151.0,0.000241,7]
[362845160,1748487049961,-175.290016,0.000241,7]
[362845161,1748487049970,-151.0,0.000241,7]
[362845162,1748487049980,-151.0,0.000241,7]
[362845163,1748487049990,-151.0,0.000241,7]
[362845164,1748487049999,-151.0,0.000241,7]
[362845165,1748487050008,-151.0,0.000241,7]
[362845166,1748487050018,-1081.445702,0.000241,7]
[362845167,1748487050027,-1081.445702,0.000241,7]
[362845168,1748487050037,-151.0,0.000241,7]
[362845169,1748487050047,-151.0,0.000241,7]
[362845170,1748487050057,-330.454584,0.000241,7]
[362845171,1748487050067,-330.454584,0.000241,7]
[362845172,1748487050076,-151.0,0.000241,7]
[362845173,1748487050085,-151.0,0.000241,7]
[362845174,1748487050095,-151.0,0.000241,7]
[362845175,1748487050104,-183.158535,0.000241,7]
[362845176,1748487050114,-183.158535,0.000241,7]
[362845177,1748487050123,-151.0,0.000241,7]
[362845178,1748487050133,-151.0,0.000241,7]
[362845179,1748487050143,-151.0,0.000241,7]
[362845180,1748487050152,-580.623305,0.000241,7]
[362845181,1748487050162,-580.623305,0.000241,7]
[362845182,1748487050171,-1865.221436,0.000241,2]
[362845183,1748487050180,-1865.221436,0.000241,2]
[362845184,1748487050189,-151.0,0.000241,7]
[362845185,1748487050199,-727.28,0.00024107,5]
[362845186,1748487050208,-500.0,0.00024109,2]
[362845187,1748487050218,-233.4,0.00024109,2]
[362845188,1748487050227,-986.87,0.00024109,2]
[362845189,1748487050238,-913.89,0.00024109,2]
[362845190,1748487050250,-490.51,0.00024109,2]
[362845191,1748487050259,-448.07,0.00024109,2]
[362845192,1748487050268,-459.76,0.00024109,2]
[362845193,1748487050278,-800.41,0.00024109,2]
[362845194,1748487050288,-430.0,0.00024109,2]
[362845195,1748487050298,-962.56,0.00024109,2]
[362845196,1748487050308,-1264.39,0.00024109,2]
[362845197,1748487050317,-1514.7535592,0.00024122,2]
[362845198,1748487050327,-157.0,0.00024164,7]
[362845199,1748487050336,-274.0347953,0.00024164,2]
[362845200,1748487050346,-153.0,0.00024164,2]
[362845201,1748487050355,-153.0,0.00024164,2]
[362845202,1748487050366,-153.0,0.00024164,2]
[362845203,1748487050375,-4989.57,0.000242,7]
[362845204,1748487050385,-727.28,0.00024207,6]
[362845205,1748487050394,-624.96597753,0.0002421,10]
[362845206,1748487050403,-160.5888959,0.00024299,2]
[362845207,1748487050413,-48336.35,0.000243,2]
[362845208,1748487050423,-236.159298,0.000243,7]
[362845209,1748487050433,-151.0,0.000243,7]
[362845210,1748487050442,-249.227252,0.000243,7]
[362845211,1748487050452,-151.0,0.000243,7]
[362845212,1748487050462,-727.28,0.00024307,4]
[362845213,1748487050471,-151.0,0.00024321,7]
[362845214,1748487050480,-151.0,0.00024321,7]
[362845215,1748487050490,-501.66769588,0.00024337,2]
[362845216,1748487050500,-214.844392,0.00024361,7]
[362845217,1748487050509,-151.0,0.00024361,7]
[362845218,1748487050519,-151.0,0.00024361,7]
[362845219,1748487050528,-151.0,0.00024361,7]
[362845220,1748487050539,-500.0,0.00024361,10]
[362845221,1748487050550,-500.0,0.00024361,10]
[362845222,1748487050560,-500.0,0.00024361,10]
[362845223,1748487050569,-500.0,0.00024361,10]
[362845224,1748487050579,-500.0,0.00024361,10]
[362845225,1748487050589,-500.0,0.00024361,10]
[362845226,1748487050598,-193.57771892,0.00024361,10]
[362845227,1748487050608,-293.85068442,0.00024361,10]
[362845228,1748487050618,-500.0,0.00024361,10]
[362845229,1748487050627,-500.0,0.00024361,10]
[362845230,1748487050637,-502.11613179,0.00024361,10]
[362845231,1748487050646,-579.03901263,0.00024361,10]
[362845232,1748487050655,-588.75766163,0.00024361,10]
[362845233,1748487050665,-330.454584,0.00024368,7]
[362845234,1748487050675,-330.454584,0.00024368,7]
[362845235,1748487050684,-183.158535,0.00024368,7]
[362845236,1748487050694,-183.158535,0.00024368,7]
[362845237,1748487050703,-580.623305,0.00024368,7]
[362845238,1748487050713,-580.623305,0.00024368,7]
[362845239,1748487050722,-624.96597753,0.00024383,11]
[362845240,1748487050732,-986.87,0.00024383,2]
[362845241,1748487050742,-913.89,0.00024383,2]
[362845242,1748487050751,-490.51,0.00024383,2]
[362845243,1748487050760,-448.07,0.00024383,2]
[362845244,1748487050770,-800.41,0.00024383,2]
[362845245,1748487050780,-536.08757952,0.00024383,2]
[362845246,1748487050789,-962.56,0.00024383,2]
[362845247,1748487050799,-1264.39,0.00024383,2]
[362845248,1748487050810,-727.28,0.00024407,7]
[362845249,1748487050819,-176.3696131,0.00024438,2]
[362845250,1748487050828,-160.8566137,0.00024438,2]
[362845251,1748487050838,-1143.8439625,0.00024438,2]
[362845252,1748487050847,-153.0,0.00024438,2]
[362845253,1748487050857,-571.9742255,0.00024438,2]
[362845254,1748487050866,-900.0,0.00024452,2]
[362845255,1748487050875,-5000.0,0.00024454,2]
[362845256,1748487050885,-5000.0,0.00024454,2]
[362845257,1748487050895,-151.0,0.00024454,7]
[362845258,1748487050906,-151.0,0.00024454,7]
[362845259,1748487050915,-151.0,0.00024454,7]
[362845260,1748487050925,-151.0,0.00024454,7]
[362845261,1748487050935,-151.0,0.00024454,7]
[362845262,1748487050944,-151.0,0.00024454,7]
[362845263,1748487050954,-299.973553,0.00024454,7]
[362845264,1748487050963,-299.973553,0.00024454,7]
[362845265,1748487050973,-151.0,0.00024454,7]
[362845266,1748487050982,-151.0,0.00024454,7]
[362845267,1748487050991,-175.290016,0.00024454,7]
[362845268,1748487051000,-151.0,0.00024454,7]
[362845269,1748487051010,-151.0,0.00024454,7]
[362845270,1748487051019,-151.0,0.00024454,7]
[362845271,1748487051029,-1081.445702,0.00024454,7]
[362845272,1748487051038,-1081.445702,0.00024454,7]
[362845273,1748487051047,-1865.221436,0.00024454,2]
[362845274,1748487051057,-1865.221436,0.00024454,2]
[362845275,1748487051067,-151.0,0.00024454,7]
[362845276,1748487051076,-151.0,0.00024488,7]
[362845277,1748487051085,-5026.4130105,0.00024488,2]
[362845278,1748487051094,-27112.50117061,0.000245,12]
[362845279,1748487051104,-151.0,0.000245,7]
[362845280,1748487051113,-7963.88073814,0.00024501,2]
[362845281,1748487051123,-5000.0,0.00024501,2]
[362845282,1748487051132,-151.0,0.00024501,7]
[362845283,1748487051141,-5000.0,0.00024505,2]
[362845284,1748487051151,-5000.0,0.00024505,2]
[362845285,1748487051160,-5000.0,0.00024505,2]
[362845286,1748487051170,-5000.0,0.00024505,2]
[362845287,1748487051180,-727.28,0.00024507,7]
[362845288,1748487051191,-624.96597753,0.00024555,11]
[362845289,1748487051201,-727.28,0.00024607,5]
[362845290,1748487051211,-206.0,0.0002464,2]
[362845291,1748487051220,-575.28029614,0.00024657,2]
[362845292,1748487051230,-466.8,0.00024657,3]
[362845293,1748487051241,-151.0,0.00024657,7]
[362845294,1748487051251,-1081.445702,0.00024657,7]
[362845295,1748487051261,-1081.445702,0.00024657,7]
[362845296,1748487051270,-986.87,0.00024657,2]
[362845297,1748487051280,-913.89,0.00024657,2]
[362845298,1748487051289,-490.51,0.00024657,2]
[362845299,1748487051298,-448.07,0.00024657,2]
[362845300,1748487051308,-800.41,0.00024657,2]
[362845301,1748487051320,-962.56,0.00024657,2]
[362845302,1748487051329,-1264.39,0.00024657,2]
[362845303,1748487051339,-153.0,0.00024658,2]
[362845304,1748487051348,-153.0,0.00024658,2]
[362845305,1748487051357,-153.0,0.00024658,2]
[362845306,1748487051366,-153.0,0.00024658,2]
[362845307,1748487051377,-153.0,0.00024658,2]
[362845308,1748487051386,-153.0,0.00024658,2]
[362845309,1748487051396,-153.0,0.00024658,2]
[362845310,1748487051406,-153.0,0.00024658,2]
[362845311,1748487051415,-153.0,0.00024658,2]
[362845312,1748487051511,-153.0,0.00024658,2]
[362845313,1748487051522,-153.0,0.00024658,2]